Workbook

Sheet MAYO 2025
B3: REGION V
B4: PEDRO DE MACORIS, REPUBLICA DOMINICANA
B5: PERSONAL SPM
B6: Total de empleados contratado
B7: NOMINA CORRESPONDIENTE AL 31 DE MAYO AÑO 2025
B8: AREA SPM
B9: NOMBRE | C9: APELLIDO | D9: CARGO | E9: DEPARTAMENTO | F9: LUGAR PRESTA SERVICIOS | G9: SUELDO BRUTO | H9: S/S | I9: SFS | J9: ISR | K9: D/A | L9: SUELDO NETO | M9: FECHA
A11: 1 | B11: PAULINO | C11: LUIS | D11: Vigilante | E11: Area SPM | F11: Clinica Quisqueya | G11: 5,000.00 | H11: =G11*2.87% -> 143.50 | I11: =G11*3.04% -> 152.00 | L11: =G11-H11-I11-K11 -> 4,704.50 | M11: 2007-05-08
A12: =A11+1 -> 2 | B12: PETRONILA ALT. | C12: PAYANO | D12: Conserje | E12: Area SPM | F12: Clinica Angelina | G12: 5,000.00 | H12: 0.00 | I12: 0.00 | K12: 0.00 | L12: 5,000.00 | M12: 2007-01-02
A13: =A12+1 -> 3 | B13: RUTH PRISCILA | C13: PEREZ | D13: Aux. Farmacia | E13: Area SPM | F13: Clinica Quisqueya | G13: 18,400.00 | H13: =G13*2.87% -> 528.08 | I13: =G13*3.04% -> 559.36 | K13: 0.00 | L13: 17,312.56 | M13: 2007-03-01
A14: 4 | B14: MARCELINO | C14: GUZMAN | D14: Sereno | E14: Area SPM | F14: Clinica El Puerto | G14: 5,000.00 | H14: 143.50 | I14: 152.00 | L14: 4,704.50 | M14: 2007-06-25
A15: 5 | B15: ANA MERCEDES | C15: DE LA CRUZ | D15: Conserje | E15: Area SPM | F15: Clinica Barrio Blanco | G15: 5,000.00 | H15: 143.50 | I15: 152.00 | L15: 4,704.50 | M15: 2007-06-01
A16: 6 | B16: FRANCISCA | C16: POMUCENO SORIANO | D16: Conserje | E16: Area SPM | F16: Clinica Guayabal | G16: 5,000.00 | H16: =G16*2.87% -> 143.50 | I16: =G16*3.04% -> 152.00 | L16: 4,704.50 | M16: 2007-07-02
A17: 7 | B17: SIMONA | C17: PEGUERO HERNANDEZ | D17: Conserje | E17: Area SPM | F17: Clinica Honduras | G17: 5,000.00 | H17: 143.50 | I17: 152.00 | L17: 4,704.50 | M17: 2007-07-02
A18: 8 | B18: LEONEL | C18: DE LA CRUZ HERNANDEZ | D18: Sereno | E18: Area SPM | F18: Clinica Honduras | G18: 5,000.00 | H18: 143.50 | I18: 152.00 | L18: =G18-H18-I18-K18 -> 4,704.50 | M18: 2007-07-02
A19: 9 | B19: JUAN JOSE | C19: JUAN JEAN | D19: Sereno | E19: Area SPM | F19: Unap Batey Esperanza | G19: 5,000.00 | H19: 143.50 | I19: 152.00 | L19: 4,704.50 | M19: 2007-07-18
A20: 10 | B20: RAMON A. | C20: PEGUERO AQUINO | D20: Sereno | E20: Area SPM | F20: Unap Angelina | G20: 5,000.00 | H20: 143.50 | I20: 152.00 | L20: 4,704.50 | M20: 2007-07-23
A21: 11 | B21: MARIA DEL C. | C21: LARA MENDEZ | D21: Atencion al Usuario | E21: Area SPM | F21: Clinica Porvenir | G21: 7,000.00 | H21: 200.90 | I21: 212.80 | L21: 6,586.30 | M21: 2007-08-01
A22: 12 | B22: ALEX | C22: ROMBLEY | D22: Sereno | E22: Area SPM | F22: Clinica Porvenir | G22: 8,318.04 | H22: =G22*2.87% -> 238.73 | I22: =G22*3.04% -> 252.87 | L22: 7,826.44 | M22: 2007-09-13
A23: =A22+1 -> 13 | B23: REYNA ISABEL | C23: MORLA DE A. | D23: Bioanalista | E23: Area SPM | F23: Clinica Barrio Lindo | G23: 18,312.00 | H23: =G23*2.87% -> 525.55 | I23: =G23*3.04% -> 556.68 | J23: 0.00 | K23: 0.00 | L23: 17,229.76 | M23: 2008-09-11
A24: 14 | B24: EVA | C24: MATEO FERRERAS | D24: Medico General | E24: Area SPM | F24: UNAP Uasd | G24: 28,657.01 | H24: 822.46 | I24: 871.17 | K24: 0.00 | L24: 26,963.38 | M24: 2007-08-08
A25: 15 | B25: JOSE | C25: CALAZAN CALMONA | D25: Sereno | E25: Area SPM | F25: UNAP las colinas | G25: 5,000.00 | H25: 143.50 | I25: 152.00 | L25: 4,704.50 | M25: 2008-02-21
A26: 16 | B26: BEATRIZ ALT. | C26: SEVERINO | D26: Odontologa | E26: Area SPM | F26: UNAP Barrio Blanco | G26: 24,000.00 | H26: =G26*2.87% -> 688.80 | I26: =G26*3.04% -> 729.60 | K26: 0.00 | L26: 22,581.60 | M26: 2008-03-17
A27: 17 | B27: CARIDAD TODMAN | C27: DE LOS SANTOS | D27: Enfermera Aux. | E27: Area SPM | F27: unap Monte coca | G27: 11,596.60 | H27: =G27*2.87% -> 332.82 | I27: =G27*3.04% -> 352.54 | K27: 0.00 | L27: 10,911.24 | M27: 2008-04-01
A28: 18 | B28: PEDRO | C28: ZORRILLA | D28: Sereno Clinica | E28: Area SPM | F28: UNAP Barrio Blanco | G28: 5,000.00 | H28: =G28*2.87% -> 143.50 | I28: =G28*3.04% -> 152.00 | L28: 4,704.50 | M28: 2008-04-30
A29: 19 | B29: FRANCISCO A | C29: CASTRO R. | D29: Auxiliar de almacen | E29: Area SPM | F29: Almacen Regional | G29: 9,600.00 | H29: =G29*2.87% -> 275.52 | I29: =G29*3.04% -> 291.84 | L29: 9,032.64 | M29: 2008-08-01
A30: 20 | B30: ODILE A. | C30: MILIAN MCCABE | D30: Aux. de Bioanalisis | E30: Area SPM | F30: Unap porvenir | G30: 22,000.00 | H30: =G30*2.87% -> 631.40 | I30: =G30*3.04% -> 668.80 | K30: 1,512.45 | L30: 19,187.35 | M30: 2008-09-01
A31: 21 | B31: JUANA | C31: MORLA POLANCO | D31: Conseje | E31: Area SPM | F31: UNAP Batey Jagual | G31: 5,000.00 | H31: 143.50 | I31: 152.00 | L31: 4,704.50 | M31: 2008-09-01
A32: 22 | B32: ANA JULIA | C32: MENDEZ BRITO | D32: Aux. Enfermera | E32: Area SPM | F32: Unap Evangelina Rodriguez | G32: 13,000.00 | H32: =G32*2.87% -> 373.10 | I32: =G32*3.04% -> 395.20 | J32: 0.00 | K32: 0.00 | L32: 12,231.70 | M32: 2008-10-08
A33: 23 | B33: YVELISSE E. | C33: ASTACIO PEÑA | D33: Conserje | E33: SRS ESTE | F33: Oficina Regional | G33: 8,050.00 | H33: =G33*2.87% -> 231.04 | I33: =G33*3.04% -> 244.72 | J33: 0.00 | K33: 1,512.45 | L33: 6,061.80 | M33: 2009-01-19
A34: 24 | B34: EPIFANIO | C34: CALDERON | D34: Sereno | E34: Area SPM | F34: Clinica Santa fe | G34: 5,000.00 | H34: 143.50 | I34: 152.00 | L34: 4,704.50 | M34: 2009-02-01
A35: 25 | B35: FRANCISCO DE J. | C35: MATICH CASTRO | D35: Auxiliar de almacen | E35: SRS ESTE | F35: Almacen Regional | G35: 9,600.00 | H35: =G35*2.87% -> 275.52 | I35: =G35*3.04% -> 291.84 | L35: 9,032.64 | M35: 2009-02-01
A36: 26 | B36: YERNIS NOEMIS | C36: POCHE F. | D36: Secretaria | E36: Area SPM | F36: clinica Quisqueya | G36: 8,000.00 | H36: 229.60 | I36: 243.20 | L36: 7,527.20 | M36: 2009-08-03
A37: 27 | B37: JOAQUIN | C37: EUSEBIO | D37: Sereno | E37: Area SPM | F37: Clinica Cayacoa | G37: 5,000.00 | H37: 143.50 | I37: 152.00 | L37: 4,704.50 | M37: 2009-12-01
A38: 28 | B38: ROSA SANCHEZ | C38: CABRERA | D38: Conserje | E38: Area SPM | F38: Clinica Porvenir | G38: 8,000.00 | H38: 229.60 | I38: 243.20 | L38: 7,527.20 | M38: 2010-02-01
A39: 29 | B39: BIENVENIDO | C39: BUSTAMANTE GUZMAN | D39: Soporte tecnico | E39: SRS ESTE | F39: Dpto. Publicidad | G39: 6,000.00 | H39: 172.20 | I39: 182.40 | K39: 0.00 | L39: 5,645.40 | M39: 2010-09-01
A40: 30 | B40: VICTOR | C40: NATERA | D40: Sereno | E40: Area SPM | F40: Unap Quisquella | G40: 5,000.00 | H40: 143.50 | I40: 152.00 | L40: 4,704.50 | M40: 2011-03-01
A41: 31 | B41: ESTHER | C41: HINOJOSA | D41: Laboratorio | E41: Area SPM | F41: Unap Povenir | G41: 13,312.00 | H41: 382.05 | I41: 404.68 | L41: 12,525.26 | M41: 2012-10-05
A42: 32 | B42: ANA LUISA | C42: JEAN JOSEPH | D42: Conserje | E42: Area SPM | F42: unap Monte coca | G42: 5,000.00 | H42: 143.50 | I42: 152.00 | L42: 4,704.50 | M42: 2012-04-01
A43: 33 | B43: FROILAN | C43: VALDEZ LORENZO | D43: Sonografista | E43: Area SPM | F43: Centro de Diagnostico | G43: 30,000.00 | H43: 861.00 | I43: 912.00 | L43: 28,227.00 | M43: 2013-01-02
A44: 34 | B44: CARY ROSEMARY | C44: SANTANA JABALERA | D44: Enfermera | E44: Area SPM | F44: unap San Martin de Pobre | G44: 8,000.00 | H44: 229.60 | I44: 243.20 | L44: 7,527.20 | M44: 2015-04-01
A45: 35 | B45: MARIA ALT. | C45: POLANCO | D45: Conserje | E45: Area SPM | F45: Unap Quisqueya | G45: 5,000.00 | H45: 143.50 | I45: 152.00 | L45: 4,704.50 | M45: 2014-09-01
A46: 36 | B46: YUDELKIS | C46: FLEMING HODGE | D46: Conserje | E46: Area SPM | F46: unap cachena | G46: 5,000.00 | H46: 143.50 | I46: 152.00 | L46: 4,704.50 | M46: 2014-11-01
A47: 37 | B47: LICETTE | C47: JIMENEZ GARCIA | D47: Conserje | E47: Area SPM | F47: Unap San Martin de Porre | G47: 5,000.00 | H47: 143.50 | I47: 152.00 | L47: 4,704.50 | M47: 2015-05-01
A48: 38 | B48: BASILIA E. | C48: JOSE CIRIACO | D48: Conserje | E48: Area SPM | F48: Unap cachena | G48: 5,000.00 | H48: 143.50 | I48: 152.00 | L48: 4,704.50 | M48: 2015-06-01
A49: 39 | B49: BASILIO | C49: CALDERON MEDINA | D49: Sereno | E49: Area SPM | F49: Unap camara Junior | G49: 5,000.00 | H49: 143.50 | I49: 152.00 | L49: 4,704.50 | M49: 2016-02-02
A50: 40 | B50: NELCIDA YOLADIS | C50: LINARES | D50: Enfermera | E50: Area SPM | F50: Unap brisal | G50: 8,000.00 | H50: 229.60 | I50: 243.20 | L50: 7,527.20 | M50: 2016-01-01
A51: 41 | B51: MARIA | C51: NIEVES MARTE | D51: Conserje | E51: Area SPM | F51: Unap Juan Dolio | G51: 5,000.00 | H51: 143.50 | I51: 152.00 | L51: 4,704.50 | M51: 2014-04-01
A52: 42 | B52: MERCEDES | C52: DANIEL DELGADO | D52: Conserje | E52: Area SPM | F52: Unap Hondura | G52: 5,000.00 | H52: =G52*2.87% -> 143.50 | I52: =G52*3.04% -> 152.00 | K52: 0.00 | L52: 4,704.50 | M52: 2014-06-01
A53: 43 | B53: DARIO FRANCISCO | C53: PIE BLAKE | D53: Sereno | E53: Area SPM | F53: Unap consuelito | G53: 5,000.00 | H53: 143.50 | I53: 152.00 | L53: 4,704.50 | M53: 2016-07-01
A54: 44 | B54: ALTAGRACIA MEDISA | C54: SEGUIILIS | D54: Conserje | E54: Area SPM | F54: Unap consuelito | G54: 5,000.00 | H54: 143.50 | I54: 152.00 | L54: 4,704.50 | M54: 2016-07-01
A55: 45 | B55: ROSMERY | C55: SERRA HERNANDEZ | D55: Conserje | E55: Area SPM | F55: Unap Bo. Mexico | G55: 5,000.00 | H55: 143.50 | I55: 152.00 | L55: 4,704.50 | M55: 2017-01-01
A56: 46 | B56: DIONICIO MADRIGAL | C56: GARCIA | D56: Sereno | E56: Area SPM | F56: UNAP punta de garza | G56: 5,000.00 | H56: 143.50 | I56: 152.00 | L56: 4,704.50 | M56: 2017-07-01
A57: 47 | B57: HECTOR MIGUEL | C57: A.MEDRANO | D57: Seguridad | E57: Area SPM | F57: unap Evan Rodriguez | G57: 6,000.00 | H57: 172.20 | I57: 182.40 | L57: 5,645.40 | M57: 2018-04-01
A58: 48 | B58: ESTALIN MARIA | C58: I.MORALES | D58: Promotora | E58: Area SPM | F58: unap el puerto | G58: 5,000.00 | H58: 143.50 | I58: 152.00 | L58: 4,704.50 | M58: 2018-04-01
A59: 49 | B59: MARLENYS RAMONA | C59: QUEVEDO ENCARNACION | D59: Medico Asistente | E59: Area SPM | F59: UNAP Don Juan | G59: 30,000.00 | H59: 861.00 | I59: 912.00 | L59: 28,227.00 | M59: 2018-05-19
A60: 50 | B60: LICITANIA | C60: MADRIGAL TEJEDA | D60: Conserje | E60: Area SPM | F60: UNAP Quisqueya | G60: 5,000.00 | H60: =G60*2.87% -> 143.50 | I60: =G60*3.04% -> 152.00 | L60: 4,704.50 | M60: 2018-07-01
A61: 51 | B61: VICTOR MANUEL | C61: POLANCO | D61: Medico Asistente | E61: Area SPM | F61: BO.BLANCO | G61: 30,000.00 | H61: 861.00 | I61: 912.00 | L61: 28,227.00 | M61: 2019-04-01
A62: 52 | B62: RAMON | C62: GIL | D62: SERENO | E62: Area SPM | F62: Oficina de area | G62: 5,000.00 | H62: =G62*2.87% -> 143.50 | I62: =G62*3.04% -> 152.00 | L62: 4,704.50 | M62: 2019-04-01 | X62: =X61:Y62 -> 0
A63: 53 | B63: JACINTO | C63: ORTEGA | D63: Sereno | E63: Area SPM | F63: Uunap cumayasa | G63: 6,500.00 | H63: =G63*2.87% -> 186.55 | I63: =G63*3.04% -> 197.60 | L63: 6,115.85 | M63: 2019-08-31
A64: 54 | B64: YENI ALT. | C64: GUERRERO MENDEZ | D64: Conserje | E64: Area SPM | F64: Unap aleman | G64: 4,000.00 | L64: 4,000.00 | M64: 2019-10-01
A65: 55 | B65: JEANINA | C65: CASTILLO MUÑOZ | D65: Conserje | E65: Area SPM | F65: Unap barrio Lindo SPM | G65: 8,000.00 | H65: =G65*2.87% -> 229.60 | I65: =G65*3.04% -> 243.20 | L65: 7,527.20 | M65: 2020-01-04
A66: 56 | B66: MASILLON | C66: BENJAMIN | D66: Sereno | E66: SRS ESTE | F66: Unap Margarita | G66: 5,000.00 | H66: 143.50 | I66: =G66*3.04% -> 152.00 | L66: 4,704.50 | M66: 13/10/2020
A67: 57 | B67: EUNICE ELAYNE | C67: DE LA CRUZ CASTRO | D67: Aux. de farmacia | E67: Area SPM | F67: Unap pedro justo carrion | G67: 12,000.00 | H67: 344.40 | I67: 364.80 | L67: 11,290.80 | M67: 2020-11-01
A68: 58 | B68: SANTA | C68: MEDINA | D68: Conserje | E68: Area SPM | F68: UNAP punta pescadora | G68: 5,000.00 | H68: 143.50 | I68: 152.00 | L68: 4,704.50 | M68: 2021-01-01
A69: 59 | B69: PORFIRIO | C69: ZORRILLA | D69: Sereno | E69: SRS-ESTE | F69: Oficina Regional | G69: 10,000.00 | H69: 287.00 | I69: 304.00 | L69: 9,409.00 | M69: 2022-01-02
A70: 60 | B70: ANA | C70: SOLANO | D70: Conserje | E70: Area SPM | F70: Unap punta pescadora | G70: 5,000.00 | H70: 143.50 | I70: =G70*3.04% -> 152.00 | L70: 4,704.50 | M70: 2021-01-02
A71: 61 | B71: ROLANDO GREGORIO | C71: PASCUAL | D71: Sereno | E71: Area SPM | F71: unap Monte coca | G71: 5,000.00 | H71: 143.50 | I71: 152.00 | L71: 4,704.50 | M71: 2021-06-04
A72: 62 | B72: GUILLERMO | C72: BAUTISTA RAMIREZ | D72: Sereno | E72: Area SPM | F72: unap alejandro bass | G72: 5,000.00 | H72: 143.50 | I72: 152.00 | L72: 4,704.50 | M72: 2021-01-05
A73: 63 | B73: SADRACK YRBIN | C73: GUILLEN | D73: Sereno | E73: Area SPM | F73: Placer Bonito | G73: 5,000.00 | H73: 143.50 | I73: 152.00 | L73: 4,704.50 | M73: 2021-01-05
A74: 64 | B74: EMELY PATRICIA | C74: RODRIGUEZ ORTEGA | D74: Asistente de informacion | E74: Area SPM | F74: Gerencia de area | G74: 8,000.00 | H74: 229.60 | I74: 243.20 | L74: 7,527.20 | M74: 2021-01-06
A75: 65 | B75: DOROTEO | C75: DE LA CRUZ CARRASCO | D75: Seguridad | E75: Area SPM | F75: Placer Bonito | G75: 7,000.00 | H75: 200.90 | I75: 212.80 | L75: =G75-H75-I75-K75 -> 6,586.30 | M75: 2021-10-01
A76: 66 | B76: MANOLO | C76: MARTINEZ | D76: Seguridad | E76: Area SPM | F76: Unap Villa Faro | G76: 5,000.00 | H76: 143.50 | I76: 152.00 | L76: 4,704.50 | M76: 2021-09-01
A77: =A76+1 -> 67 | B77: ROBERTO ANTONIO | C77: DE LA CRUZ | D77: Chofer | E77: SRS-ESTE | F77: Dpto. de Odontologia | G77: 18,000.00 | H77: 516.60 | I77: 547.20 | L77: 16,936.20 | M77: 2021-10-01
A78: 68 | B78: JOSE ANIIBAL | C78: FRANCISCO DANIEL | D78: Seguridad | E78: Area SPM | F78: Unap Paloma | G78: 5,000.00 | H78: 143.50 | I78: 152.00 | L78: 4,704.50 | M78: 2021-12-01
A79: 69 | B79: MIGUEL | C79: NUÑEZ MAZARA | D79: Seguridad | E79: SRS-ESTE | F79: Oficina Regional | G79: 7,000.00 | H79: 200.90 | I79: 212.80 | L79: 6,586.30 | M79: 2021-12-01
A80: 70 | B80: HIPOLITO | C80: TOLENTINO | D80: Seguridad | E80: Area SPM | F80: Unap Villa Faro | G80: 5,000.00 | H80: 143.50 | I80: 152.00 | L80: 4,704.50 | M80: 2022-02-08
A81: 71 | B81: MANUEL DE JESUS | C81: LORA | D81: Seguridad | E81: SRS-ESTE | F81: Oficina Regional | G81: 7,000.00 | H81: 200.90 | I81: 212.80 | L81: 6,586.30 | M81: 2022-11-01
A82: 72 | B82: DIGNA | C82: ROSARIO JAVIER | D82: Conserje | E82: Area SPM | F82: UNAP Santa Fe | G82: 5,000.00 | H82: 143.50 | I82: 152.00 | L82: 4,704.50 | M82: 2022-12-01
A83: 73 | B83: AIDA | C83: PEREZ NATERA | D83: Conserje | E83: Area SPM | F83: Unap las Goutier | G83: 5,000.00 | H83: 143.50 | I83: 152.00 | L83: 4,704.50 | M83: 2023-03-01
A84: 74 | B84: ESTEBANIA | C84: MELLA WILLIAMS | D84: Conserje | E84: Area SPM | F84: CPN IDSS Consuelo | G84: 5,000.00 | H84: 143.50 | I84: 152.00 | L84: 4,704.50 | M84: 2023-04-01
A85: 75 | B85: ROSA | C85: HERNANDEZ | D85: Conserje | E85: Area SPM | F85: CPN Esperanza | G85: 5,000.00 | H85: 143.50 | I85: 152.00 | L85: 4,704.50 | M85: 1//10/2023
A86: 76 | B86: Darlenys Maria | C86: Santana Jimenez | D86: Conserje | E86: Area SPM | F86: Unap Santa clara de Asis | G86: 6,000.00 | H86: 172.20 | I86: 182.40 | L86: 5,645.40 | M86: 2023-03-19
A87: 77 | B87: ANTELINA ENEROLIZA | C87: CANDELARIO BAEZ | D87: CONSERJE | E87: Area SPM | F87: CENTRO DE DIAGNOSTICO | G87: 5,000.00 | H87: 143.50 | I87: 152.00 | L87: 4,704.50 | M87: 2024-07-10
A88: 78 | B88: ANGELA ALTAGARCIA | C88: VALENZUELA DE ACOSTA | D88: CONSERJE | E88: Area SPM | F88: CPN BUEN PASTOR | G88: 5,000.00 | H88: 143.50 | I88: 152.00 | L88: 4,704.50 | M88: 2024-07-11
A89: 79 | B89: PASCUALA ESTEBANIA | C89: MARCHENA SABINO | D89: CONSERJE | E89: Area SPM | F89: UNAP LAS PIEDAS(CONANI) | G89: 5,000.00 | H89: 143.50 | I89: 152.00 | L89: 4,704.50 | M89: 2024-07-11
A90: 80 | B90: MARITZA | C90: GONZALEZ FRIAS | D90: CONSERJE | E90: Area SPM | F90: Unap Villa Faro | G90: 5,000.00 | H90: 143.50 | I90: 152.00 | L90: 4,704.50 | M90: 2024-07-11
A91: 81 | B91: JULIO | C91: NAVARRO | D91: SERENO | E91: Area SPM | F91: UNAP PORVENIR | G91: 5,000.00 | H91: 143.50 | I91: 152.00 | L91: 4,704.50 | M91: 2024-07-12
A92: 82 | B92: CARMEN | C92: BAUTISTA OZORIA | D92: CONSERJE | E92: Area SPM | F92: UNAP JAPON | G92: 5,000.00 | H92: 143.50 | I92: 152.00 | L92: 4,704.50 | M92: 2024-09-02
A93: 83 | B93: MIGUEL | C93: RIVERA DE LA CRUZ | D93: SERENO | E93: Area SPM | F93: Unap barrio Lindo SPM | G93: 6,000.00 | H93: 172.20 | I93: 182.40 | L93: 5,645.40 | M93: 2025-01-03
A94: 84 | B94: BETHANIA | C94: VALDEZ MARIA | D94: CONSERJE | E94: Area SPM | F94: CPN CAMARA JUNION | G94: 5,000.00 | H94: 143.50 | I94: 152.00 | L94: 4,704.50 | M94: 2025-02-03
A95: 85 | B95: ROSELIS HERENIA | C95: ORTIZ DE LA CRUZ | D95: CONSERJE | E95: Area SPM | F95: CPN EL BRISAL | G95: 5,000.00 | H95: 143.50 | I95: 152.00 | L95: 4,704.50 | M95: 2025-02-03
A96: 86 | B96: JUANA LUCRECIA | C96: WECKS DAVID | D96: CONSERJE | E96: Area SPM | F96: CPN BATEY ANGELINA | G96: 5,000.00 | H96: 143.50 | I96: 152.00 | L96: 4,704.50 | M96: 2025-02-03
A97: =A96+1 -> 87 | B97: HECTOR JULIO | C97: CASTILLO ROJAS | D97: SERENO | E97: Area SPM | F97: CPN EL BRISAL | G97: 5,000.00 | H97: 143.50 | I97: 152.00 | L97: 4,704.50 | M97: 2025-03-03
A98: =A97+1 -> 88 | B98: LUISA MARIA | C98: CASTILLO LOUIS | D98: CONSERJE | E98: Area SPM | F98: Centro de Diagnostico PORVENIR | G98: 5,000.00 | H98: 143.50 | I98: 152.00 | L98: 4,704.50 | M98: 2025-05-01
A99: =A98+1 -> 89 | B99: MARIA VANESSA | C99: MEJIAS DE PEÑA | D99: CONSERJE | E99: Area SPM | F99: CPN PUNTA DE GANZA | G99: 5,000.00 | H99: 143.50 | I99: 152.00 | L99: 4,704.50 | M99: 2025-05-07
B100: Total de empleados contratado | G100: =SUM(G11:G99) -> 700,345.65 | H100: =SUM(H11:H99) -> 19,841.62 | I100: =SUM(I11:I99) -> 21,016.91 | J100: =SUM(J11:J83) -> 0.00 | K100: =SUM(K11:K83) -> 3,024.90 | L100: =SUM(L11:L99) -> 656,462.22
D102: LIC. YUDELKY JABALERA | G102: DR. RICARDO JULIO ROMERO
C103: ADMINISTRADORA | G103: DIRECTOR
B105: REGION V
B106: SAN PEDRO DE MACORIS, REPUBLICA DOMINICANA
B107: RNC 430041793
B108: NOMINA CORRESPONDIENTE AL 31 DE MAYO AÑO 2025
B109: AREA DE HATO MAYOR
B110: NOMBRE | C110: APELLIDO | D110: CARGO | E110: DEPARTAMENTO | F110: LUGAR PRESTA SERVICIOS | G110: SUELDO BRUTO | H110: S/S | I110: SFS | J110: ISR | K110: D/A | L110: SUELDO NETO | M110: FECHA
A111: 1 | B111: CARMEN I. | C111: SANTANA P. | D111: Aux. de enfermeria | E111: Area Hato Mayor | F111: Clinica Morquecho | G111: 11,786.00 | H111: =G111*2.87% -> 338.26 | I111: =G111*3.04% -> 358.29 | K111: 0.00 | L111: =G111-H111-I111-K111 -> 11,089.45 | M111: 2006-09-11
A112: =A111+1 -> 2 | B112: SULINDA | C112: MOTA DE SALAS | D112: Conserje | E112: Area Hato Mayor | F112: Clinica Yanigua | G112: 5,000.00 | H112: 143.50 | I112: 152.00 | L112: 4,704.50 | M112: 2007-01-02
A113: =A112+1 -> 3 | B113: DOMINGO A. | C113: PEGUERO LUNA | D113: Viglante | E113: Area Hato Mayor | F113: Clinica Yanigua | G113: 5,000.00 | H113: 143.50 | I113: 152.00 | L113: 4,704.50 | M113: 2007-04-02
A114: 4 | B114: MARIA | C114: NOLASCO | D114: Conserje | E114: Area Hato Mayor | F114: Clinica El valle | G114: 7,000.00 | H114: 143.50 | I114: 152.00 | L114: 6,704.50 | M114: 2007-02-01
A115: 5 | B115: NIURKA A. | C115: AQUINO JAVIER | D115: Tecnica Farmacia | E115: Area Hato Mayor | F115: Hospital el Valle | G115: 11,786.00 | H115: =G115*2.87% -> 338.26 | I115: =G115*3.04% -> 358.29 | K115: 0.00 | L115: =G115-H115-I115-K115 -> 11,089.45 | M115: 2007-08-01
A116: 6 | B116: ZENOVIA | C116: TRINIDAD MARTINEZ | D116: Conserje | E116: Area Hato Mayor | F116: Villa Navarro | G116: 5,000.00 | H116: 143.50 | I116: 152.00 | L116: 4,704.50 | M116: 2007-08-08
A117: 7 | B117: MIGUEL ISABEL | C117: VASQUEZ | D117: Chofer | E117: Area Hato Mayor | F117: Oficina area | G117: 8,000.00 | H117: 229.60 | I117: 243.20 | L117: 7,527.20 | M117: 2010-02-01
A118: 8 | B118: FELIX | C118: CANARIO | D118: Sereno | E118: Area Hato Mayor | F118: Unap Ondina | G118: 5,000.00 | H118: =G118*2.87% -> 143.50 | I118: =G118*3.04% -> 152.00 | L118: =G118-H118-I118 -> 4,704.50 | M118: 2011-03-01
A119: 9 | B119: ELSA AURORA | C119: ZORRILLA | D119: Conserje | E119: Area Hato Mayor | F119: U. Punta de Garza | G119: 5,000.00 | H119: 143.50 | I119: 152.00 | L119: 4,704.50 | M119: 2012-06-01
A120: 10 | B120: CARMEN | C120: DE LA CRUZ TORREZ | D120: Conserje | E120: Area Hato Mayor | F120: Unap La China | G120: 5,000.00 | H120: 143.50 | I120: 152.00 | L120: 4,704.50 | M120: 2012-11-01
A121: 11 | B121: YAQUELIN | C121: CASTILLO MONEGRO | D121: Conserje | E121: Area Hato Mayor | F121: Unap la Javilla | G121: 5,000.00 | H121: 143.50 | I121: 152.00 | L121: 4,704.50 | M121: 2014-07-01
A122: 12 | B122: YARELIS | C122: GOMEZ REYES | D122: Conserje | E122: Area Hato Mayor | F122: Unap la plaza | G122: 5,000.00 | H122: 143.50 | I122: 152.00 | L122: 4,704.50 | M122: 2014-10-01
A123: 13 | B123: RUDELANIA | C123: OVALLE VEGA | D123: Medico asistente | E123: Area Hato Mayor | F123: Unap la plaza | G123: 20,000.00 | H123: 574.00 | I123: 608.00 | L123: 18,818.00 | M123: 2014-10-01
A124: 14 | B124: CLAUDIA M. | C124: RINCON COLIN | D124: Enfermera | E124: Area Hato Mayor | F124: Unap la plaza | G124: 7,000.00 | H124: 200.90 | I124: 212.80 | L124: 6,586.30 | M124: 2014-10-01
A125: 15 | B125: RAFAEL | C125: GONZALEZ | D125: Sereno | E125: Area Hato Mayor | F125: Unap km 15 Hato Mayor | G125: 5,000.00 | H125: 143.50 | I125: 152.00 | L125: 4,704.50 | M125: 2015-08-01
A126: 16 | B126: CARINYS MARIEL | C126: LOPEZ | D126: Promotora de salud | E126: Area Hato Mayor | F126: Oficina area | G126: 6,900.00 | H126: =G126*2.87% -> 198.03 | I126: =G126*3.04% -> 209.76 | K126: 0.00 | L126: =G126-H126-I126-K126 -> 6,492.21 | M126: 2017-10-01
A127: 17 | B127: YOHARKY | C127: LORENZO ABREU | D127: Aux. de enfermeria | E127: Area Hato Mayor | G127: 9,000.00 | H127: 258.30 | I127: 273.60 | K127: PAGO15 dias laborable | L127: 5,665.00 | M127: 2018-05-01
A128: 18 | B128: TAIRA MARIA | C128: GONZALEZ | D128: Farmaceutica | E128: Area Hato Mayor | F128: Hospital el valle | G128: 18,400.00 | H128: 528.08 | I128: 559.36 | L128: =G128-H128-I128 -> 17,312.56 | M128: 2018-07-01
A129: 19 | B129: ISRAEL | C129: VASQUEZ ALEXANDER | D129: Sereno | E129: Area Hato Mayor | F129: Gerencia de area | G129: 5,000.00 | H129: 143.50 | I129: 152.00 | L129: =SUM(G129-H129-I129) -> 4,704.50 | M129: 2019-07-01
A130: 20 | B130: GAUDY | C130: CRISOSTOMO | D130: Conjerje | E130: Area Hato Mayor | F130: Unap ondina | G130: 5,000.00 | H130: 143.50 | I130: 152.00 | L130: =SUM(G130-H130-I130) -> 4,704.50 | M130: 2021-10-01
A131: 21 | B131: SAMUEL CRISTINO | C131: SALAZAR SOSA | D131: Tecnico | E131: Area Hato Mayor | F131: Gerencia de area | G131: 30,000.00 | H131: 861.00 | I131: 912.00 | K131: 1,512.45 | L131: =SUM(G131-H131-I131-K131) -> 26,714.55 | M131: 2022-01-07
A132: 22 | B132: RICHARD | C132: SANTANA PADILLA | D132: Mensajero | E132: Area Hato Mayor | F132: Gerencia de area | G132: 7,000.00 | H132: 200.90 | I132: 212.80 | L132: =SUM(G132-H132-I132) -> 6,586.30 | M132: 2022-04-01
A133: 23 | B133: FRANCISCA | C133: REYES LOPEZ | D133: Conserje | E133: Area Hato Mayor | F133: Unap Morquecho | G133: 5,000.00 | H133: 143.50 | I133: 152.00 | L133: =SUM(G133-H133-I133) -> 4,704.50 | M133: 2022-10-01
A134: 24 | B134: MAGALIS | C134: JIMENEZ | D134: Conserje | E134: Area Hato Mayor | F134: Unap jalonga | G134: 5,000.00 | H134: 143.50 | I134: 152.00 | L134: 4,704.50 | M134: 2022-10-01
A135: 25 | B135: DULCE MARIA | C135: DOMINGUEZ PEÑA | D135: Conserje | E135: Area Hato Mayor | F135: Unap Km 15 | G135: 5,000.00 | H135: 143.50 | I135: 152.00 | L135: 4,704.50 | M135: 2022-10-01
A136: 26 | B136: IRMA GRISEL | C136: REYES FELICIANO | D136: Conserje | E136: Area Hato Mayor | F136: Unap la Sierra | G136: 5,000.00 | H136: 143.50 | I136: 152.00 | L136: 4,704.50 | M136: 2022-10-01
A137: 27 | B137: RAFAEL | C137: FLOID POLICIA | D137: Sereno | E137: Area Hato Mayor | F137: Unap jalonga | G137: 5,000.00 | H137: 143.50 | I137: 152.00 | L137: 4,704.50 | M137: 2022-11-01
A138: 28 | B138: JULIO ADRIANO | C138: DIAZ ACOSTA | D138: Sereno | E138: Area Hato Mayor | F138: Unap Magua | G138: 5,000.00 | H138: 143.50 | I138: 152.00 | L138: 4,704.50 | M138: 2022-12-01
A139: 29 | B139: JUAN | C139: JAVIER | D139: Viglante | E139: Area Hato Mayor | F139: Unap jalonga | G139: 5,000.00 | H139: 143.50 | I139: 152.00 | L139: 1,851.85 | M139: 2023-08-01
A140: 30 | B140: ISMAEL | C140: GARCIA SEVERINO | D140: Sereno | E140: Area Hato Mayor | F140: Yerba Buena | G140: 5,000.00 | H140: 143.50 | I140: 152.00 | L140: 4,704.50 | M140: 2024-02-01
A141: 31 | B141: PEDRITO | C141: DE LA ROSA RIVERA | D141: VIGILANTE | E141: Area Hato Mayor | F141: ATENCION PRI LAS CAÑITAS | G141: 5,000.00 | H141: 143.50 | I141: 152.00 | L141: 4,704.50 | M141: 2025-02-01
B142: TOTAL NOMINA HATO MAYOR | G142: =SUM(G111:G141) -> 236,872.00 | H142: =SUM(H111:H141) -> 6,740.83 | I142: =SUM(I111:I141) -> 7,140.11 | K142: =SUM(K111:K139) -> 1,512.45 | L142: =SUM(L111:L141) -> 215,822.86
C145: LIC. YUDELKY JABALERA | F145: DR. RICARDO JULIO ROMERO
B146: ADMINISTRADORA | F146: DIRECTOR
B149: REGION V
B150: SAN PEDRO DE MACORIS, REPUBLICA DOMINICANA
B151: RNC 430041793
B152: NOMINA CORRESPONDIENTE AL 31 DE MAYO AÑO 2025
B153: PERSONAL AREA EL SEYBO | H153: S/S | I153: SFS | J153: ISR | K153: D/A
B154: NOMBRE | C154: APELLIDO | D154: CARGO | E154: DEPARTAMENTO | F154: LUGAR PRESTA SERVICIOS | G154: SUELDO BRUTO | H154: DEDUCCIONES | L154: SUELDO NETO | M154: FECHA
A155: 1 | B155: ANA MARIA | C155: VASQUEZ SANTANA | D155: Conserje | E155: Area el seibo | F155: Clinica las 500 | G155: 5,000.00 | H155: 143.50 | I155: 152.00 | L155: 4,704.50 | M155: 2007-06-01
A156: =A155+1 -> 2 | B156: OSVALDO ANTONIO | C156: CRUZ BERAS | D156: Sereno | E156: Area el seibo | F156: Unap Los Franceses | G156: 5,000.00 | H156: 143.50 | I156: 152.00 | L156: 4,704.50 | M156: 2024-10-03
A157: =A156+1 -> 3 | B157: RAFAELA | C157: DIAZ DIAZ | D157: Conserje | E157: Area el seibo | F157: Clinica el Guaral | G157: 5,000.00 | H157: 143.50 | I157: 152.00 | L157: 4,704.50 | M157: 2009-08-14
A158: 4 | B158: YNIRIO MODESTO | C158: LEONARDO | D158: Sereno | E158: Area el seibo | F158: Unap el cerrito del seibo | G158: 5,000.00 | H158: 143.50 | I158: 152.00 | K158: 0.00 | L158: 4,704.50 | M158: 2011-01-01
A159: 5 | B159: AMPARO | C159: MOJICA | D159: Conserje | E159: Area el seibo | F159: Centro de zona Villa Guerrero | G159: 5,000.00 | H159: 143.50 | I159: 152.00 | L159: 4,704.50 | M159: 2011-01-01
A160: 6 | B160: SONIA ELENA | C160: PAREDES MARTINEZ | D160: Conserje | E160: Area el seibo | F160: Unap las guajabas | G160: 5,000.00 | H160: 143.50 | I160: 152.00 | L160: 4,704.50 | M160: 2016-04-01
A161: 7 | B161: LEONIDAS | C161: MOTA DE LA CRUZ | D161: Conserje | E161: Area el seibo | F161: Unap las guajabas | G161: 5,000.00 | H161: =G161*2.87% -> 143.50 | I161: =G161*3.04% -> 152.00 | L161: =G161-H161-I161 -> 4,704.50 | M161: 2016-09-01
A162: 8 | B162: ROSANGELA | C162: SORIANO | D162: Medico asist. | E162: Area el seibo | F162: Unap los botado | G162: 28,000.00 | H162: 803.60 | I162: 851.20 | L162: =G162-H162-I162 -> 26,345.20 | M162: 2018-02-01
A163: 9 | B163: TATATIANA ROSANA | C163: AQUINO | D163: Aux. de Farmacia | E163: Area el seibo | F163: Gerencia de area Seibo | G163: 9,835.00 | H163: 282.26 | I163: 298.98 | L163: =G163-H163-I163 -> 9,253.75 | M163: 2018-04-01
A164: 10 | B164: ANGELINA | C164: PEGUERO | D164: Aux. de limpieza | E164: Area el seibo | F164: Unap la mina | G164: 5,000.00 | H164: 143.50 | I164: 152.00 | L164: =G164-H164-I164 -> 4,704.50 | M164: 2020-01-09
A165: 11 | B165: OSVIANNY | C165: ZORRILLA BERAS | D165: Enc. De soporte tecnico | E165: Area el seibo | F165: Gerencia de area | G165: 30,000.00 | H165: 861.00 | I165: 912.00 | L165: 28,227.00 | M165: 2020-01-11
A166: =A165+1 -> 12 | B166: DIONILIA | C166: ZORRILLA | D166: Conserje | E166: Area el seibo | F166: Unap Pedro Sanchez | G166: 5,000.00 | H166: 143.50 | I166: 152.00 | L166: 4,704.50 | M166: 2021-01-03
A167: =A166+1 -> 13 | B167: MILOSY ARACELIS | C167: BAEZ APONTE | D167: Aux. de Enfermeria | E167: Area el seibo | F167: Unap Cañada del Agua | G167: 10,000.00 | H167: 287.00 | I167: 304.00 | L167: 9,409.00 | M167: 2021-01-07
A168: 14 | B168: CARMEN DOLORES | C168: GARCIA | D168: Conserje | E168: Area el seibo | F168: Unap Villa Guerrero | G168: 5,000.00 | H168: 143.50 | I168: 152.00 | L168: 4,704.50 | M168: 2021-09-01
A169: 15 | B169: CANDIDA | C169: DE LA CRUZ | D169: Conserje | E169: Area el seibo | F169: Unap Los Franceses | G169: 5,000.00 | H169: 143.50 | I169: 152.00 | L169: 4,704.50
A170: 16 | B170: LUCIA | C170: DE JESUS | D170: Conserje | E170: Area el seibo | F170: Unap el cedro de miches | G170: 5,000.00 | H170: 143.50 | I170: 152.00 | L170: 4,704.50 | M170: 2022-05-01
A171: 17 | B171: ANTONIO | C171: HERNANDEZ | D171: Vigilante | E171: Area el seibo | F171: Unap Magarin | G171: 5,000.00 | H171: 143.50 | I171: 152.00 | L171: 4,704.50 | M171: 2023-03-01
A172: 18 | B172: DEMETRIO | C172: MEDINA | D172: Vigilante | E172: Area el seibo | F172: Unap el cerrito | G172: 5,000.00 | H172: 143.50 | I172: 152.00 | L172: 4,704.50 | M172: 2023-04-01
A173: 19 | B173: VIRGIA | C173: SANTANA MENDOZA | D173: Conserje | E173: Area el seibo | F173: Unap La Gina | G173: 5,000.00 | H173: 143.50 | I173: 152.00 | L173: 4,704.50 | M173: 2024-06-06
A174: =A173+1 -> 20 | B174: LEIDI ARIELA | C174: DOROTEO VASQUEZ | D174: Secretaria | E174: Area el seibo | F174: Gerencia de area | G174: 10,000.00 | H174: 287.00 | I174: 304.00 | L174: 9,409.00 | M174: 2025-01-03
A175: =A174+1 -> 21 | B175: JOHAN EMIL | C175: VARGAS DE LA CRUZ | D175: DIGITADOR | E175: Area el seibo | F175: GERENCIA DE AREA | G175: 10,000.00 | H175: 287.00 | I175: 304.00 | L175: 9,409.00 | M175: 2025-03-01
B176: TOTAL NOMINA EL SEIBO | G176: =SUM(G155:G175) -> 172,835.00 | H176: =SUM(H155:H175) -> 4,960.36 | I176: =SUM(I155:I175) -> 5,254.18 | J176: =SUM(J155:J174) -> 0.00 | K176: =SUM(K155:K174) -> 0.00 | L176: =SUM(L155:L175) -> 162,620.45
C179: LIC. YUDELKY JABALERA | F179: DR. RICARDO JULIO ROMERO
B180: ADMINISTRADORA | F180: DIRECTOR
B183: REGION V
B184: C/COLON No.28, CENTRO DE LA CIUDAD
B185: SAN PEDRO DE MACORIS, REPUBLICA DOMINICANA
B186: RNC 430041793
B188: NOMINA CORRESPONDIENTE AL 31 DE MAYO AÑO 2025
B189: PERSONAL LA ROMANA | H189: S/S | I189: SFS | J189: ISR | K189: D/A | L189: 0.00
B190: NOMBRE | C190: APELLIDO | D190: CARGO | E190: DEPARTAMENTO | F190: LUGAR PRESTA SERVICIOS | G190: SUELDO BRUTO | H190: DEDUCCIONES | L190: SUELDO NETO | M190: FECHA
A191: 1 | B191: SONIA MARGARITA | C191: HACEN MENOR | D191: Conserje | E191: Area Romana | F191: Clinica Higueral | G191: 5,000.00 | H191: 143.50 | I191: 152.00 | L191: 4,704.50 | M191: 2007-06-25
A192: =A191+1 -> 2 | B192: ANGELA | C192: MATEO VILLAR | D192: Conserje | E192: Area Romana | F192: Clinica Maria Trinidad Sanchez | G192: 5,000.00 | H192: 143.50 | I192: 152.00 | L192: 4,704.50 | M192: 2007-11-01
A193: =A192+1 -> 3 | B193: FRANCISCA | C193: NOLASCO | D193: Conserje | E193: Area Romana | F193: Unap Piedra Linda | G193: 5,000.00 | H193: 143.50 | I193: 152.00 | L193: 4,704.50 | M193: 2008-02-01
A194: 4 | B194: SANDRA | C194: CESPEDES PAYANO | D194: Conserje | E194: Area Romana | F194: Unap Cucama | G194: 5,000.00 | H194: 143.50 | I194: 152.00 | L194: 4,704.50 | M194: 2008-02-14
A195: 5 | B195: ROGELIO | C195: SOLANO SILVESTRE | D195: Sereno | E195: Area Romana | F195: Unap Los Mulos | G195: 5,000.00 | H195: 143.50 | I195: 152.00 | L195: 4,704.50 | M195: 2008-10-01
A196: 6 | B196: ELSA DEONI CIA | C196: MERCEDES ORTIZ | D196: Lic.Enfermeria | E196: Area Romana | F196: Clinica Higueral | G196: 10,000.00 | H196: =G196*2.87% -> 287.00 | I196: =G196*3.04% -> 304.00 | L196: =G196-H196-I196 -> 9,409.00 | M196: 2009-08-03
A197: 7 | B197: WANDA YUSIL | C197: DEL ROSARIO | D197: Aux. de Oficina | E197: Area Romana | F197: Clinica Villa Hermosa | G197: 5,000.00 | H197: 143.50 | I197: 152.00 | L197: 4,704.50 | M197: 2010-02-01
A198: 8 | B198: ENMA | C198: DE LOS SANTOS | D198: Conserje | E198: Area Romana | F198: UNAP Los Coco | G198: 5,000.00 | H198: 143.50 | I198: 152.00 | L198: 4,704.50 | M198: 2010-04-01
A199: 9 | B199: CARLOS ANT. | C199: CORDONES | D199: Sereno | E199: Area Romana | F199: UNAP KM 14 | G199: 5,000.00 | H199: 143.50 | I199: 152.00 | K199: 1,512.45 | L199: =G199-H199-I199-K199 -> 3,192.05 | M199: 2012-07-01
A200: 10 | B200: FERMIN | C200: RIJO | D200: Sereno | E200: Area Romana | F200: UNAP Luis J. Suarez | G200: 5,000.00 | H200: 143.50 | I200: 152.00 | L200: 4,704.50 | M200: 2012-08-01
A201: 11 | B201: DINORA E | C201: RAMIREZ DE LA CRUZ | D201: Seccretaria | E201: Area Romana | F201: Oficina area Romana | G201: 20,400.00 | H201: =G201*2.87% -> 585.48 | I201: =G201*3.04% -> 620.16 | K201: 0 | L201: =G201-H201-I201-K201 -> 19,194.36 | M201: 2014-03-01
A202: 12 | B202: MARGARITO | C202: CUETO ROSARIO | D202: Sereno | E202: Area Romana | F202: Clinica Villa Hermosa | G202: 5,000.00 | H202: 143.50 | I202: 152.00 | L202: 4,704.50 | M202: 2014-03-01
A203: 13 | B203: RAMONA GERTRUDIS | C203: HUNT S. | D203: Aux de farmacia | E203: Area Romana | F203: Unap Luis J. Suarez | G203: 7,750.00 | H203: 222.43 | I203: 235.60 | L203: 7,291.98 | M203: 2014-10-01
A204: 14 | B204: PROFECTA | C204: ACOSTA FERMIN | D204: Conserje | E204: Area Romana | F204: Unap Saona | G204: 5,000.00 | H204: 143.50 | I204: 152.00 | L204: 4,704.50 | M204: 2016-10-01
A205: 15 | B205: DOMINGA | C205: MEJIA | D205: Promotara | E205: Area Romana | F205: Unap conani | G205: 5,000.00 | H205: 143.50 | I205: 152.00 | L205: 4,704.50 | M205: 2016-12-01
A206: 16 | B206: MARIANO | C206: ANTONIO MARTE | D206: Sereno | E206: Area Romana | F206: Unap villa verde | G206: 5,000.00 | H206: 143.50 | I206: 152.00 | L206: 4,704.50 | M206: 2015-11-01
A207: 17 | B207: DAISY MARIA | C207: DE LEON FELIX | D207: Conserje | E207: Area Romana | F207: Unap villa hermosa | G207: 5,000.00 | H207: =G207*2.87% -> 143.50 | I207: =G207*3.04% -> 152.00 | L207: =G207-H207-I207 -> 4,704.50 | M207: 2017-08-01
A208: 18 | B208: LIDIA S. | C208: FLORIMON | D208: Promotora de salud | E208: Area Romana | F208: Oficina area Romana | G208: 5,000.00 | H208: 143.50 | I208: 152.00 | L208: 4,704.50 | M208: 2017-11-01
A209: 19 | B209: RAQUEL | C209: REYES GONZALEZ | D209: Conserje | E209: Area Romana | F209: Oficina area Romana | G209: 5,000.00 | H209: 143.50 | I209: 152.00 | L209: 4,704.50 | M209: 2017-11-01
A210: 20 | B210: FELICITA | C210: AGUSTIN MIGUEL | D210: Enfermera | E210: Area Romana | F210: Hosp. Guaymate | G210: 7,000.00 | H210: 200.90 | I210: 212.80 | L210: =G210-H210-I210 -> 6,586.30 | M210: 2018-03-01
A211: 21 | B211: DEIVI | C211: SILVESTRE DE LA CRUZ | D211: Sereno | E211: Area Romana | F211: Unap la caleta | G211: 5,000.00 | H211: 143.50 | I211: 152.00 | L211: 4,704.50 | M211: 2019-11-01
A212: 22 | B212: JOSEFA | C212: PADUA | D212: Conserje | E212: Area Romana | F212: Unap la caleta | G212: 5,000.00 | H212: 143.50 | I212: 152.00 | L212: 4,704.50 | M212: 2019-01-01
A213: 23 | B213: GLORIA | C213: JIMENEZ MEDINA | D213: Bionalista | E213: Area Romana | F213: Hosp. Luis J.Suarez | G213: 11,000.00 | H213: 315.70 | I213: 334.40 | L213: 10,349.90 | M213: 2019-02-01
A214: 24 | B214: FERNANDO ABAD | C214: GREGORIO SCROGGNS | D214: sereno | E214: Area Romana | F214: Unap caleta | G214: 5,000.00 | H214: 143.5 | I214: 152 | L214: =SUM(G214-H214-I214) -> 4,704.50 | M214: 2019-07-01
... 49 more rows
